fUST/lending_fUST_20250930
["ID","MTS","AMOUNT","RATE_DAILY","PERIOD"]
[388581157,1759245097555,-158.36179387,0.00041096,31]
[388581158,1759245097565,-492.56201249,0.00041301,2]
[388581159,1759245097575,-561.45114027,0.00041301,2]
[388581160,1759245097591,-609.82661484,0.00041301,2]
[388581161,1759245097601,-651.69,0.00041301,2]
[388581162,1759245097611,-189.44378083,0.000414,3]
[388581163,1759245097621,-233.92491258,0.000414,3]
[388581164,1759245097631,-479.98,0.00041575,26]
[388581165,1759245097641,-999.0,0.00041643,120]
[388581166,1759245097651,-156.26796631,0.00041716,120]
[388581167,1759245097660,-979.0,0.00041761,2]
[388581168,1759245097669,-630.0,0.00041761,2]
[388581169,1759245097679,-479.98,0.00042123,27]
[388581170,1759245097688,-152.03477922,0.00042321,120]
[388581171,1759245097698,-703.65211094,0.00042347,15]
[388581172,1759245097708,-500.0,0.00042354,30]
[388581173,1759245097718,-999.0,0.00042465,120]
[388581174,1759245097728,-656.24,0.000426,120]
[388581175,1759245097737,-479.98,0.0004267,28]
[388581176,1759245097747,-361.16038322,0.00042767,40]
[388581177,1759245097756,-479.98,0.00043218,29]
[388581178,1759245097765,-999.0,0.00043287,120]
[388581179,1759245097775,-516.25055081,0.00043433,120]
[388581180,1759245097784,-458323.3068,0.00043444,30]
[388581181,1759245097793,-151.10493717,0.00043444,2]
[388581182,1759245097803,-151.0,0.00043444,120]
[388581183,1759245097812,-151.0,0.00043444,120]
[388581184,1759245097822,-151.0,0.00043444,120]
[388581185,1759245097835,-151.0,0.00043444,120]
[388581186,1759245097844,-151.0,0.00043444,120]
[388581187,1759245097854,-151.0,0.00043444,120]
[388581188,1759245097863,-151.0,0.00043444,120]
[388581189,1759245097873,-151.0,0.00043444,120]
[388581190,1759245097883,-151.0,0.00043444,120]
[388581191,1759245097894,-151.0,0.00043444,120]
[388581192,1759245097904,-151.0,0.00043444,30]
[388581193,1759245097914,-195.873488,0.00043444,120]
[388581194,1759245097924,-151.0,0.00043444,120]
[388581195,1759245097933,-151.0,0.00043444,120]
[388581196,1759245097942,-151.0,0.00043444,120]
[388581197,1759245097951,-151.0,0.00043444,120]
[388581198,1759245097960,-151.0,0.00043444,120]
[388581199,1759245097970,-217.69578,0.00043444,120]
[388581200,1759245097980,-220.0,0.00043444,120]
[388581201,1759245097989,-479.98,0.00043766,30]
[388581202,1759245097999,-500.0,0.00043835,120]
[388581203,1759245098011,-160.0,0.00044,30]
[388581204,1759245098022,-161.0,0.00044,90]
[388581205,1759245098032,-999.0,0.00044109,120]
[388581206,1759245098042,-500.0,0.00044109,120]
[388581207,1759245098052,-1500.0,0.00044239,2]
[388581208,1759245098062,-479.98,0.00044314,31]
[388581209,1759245098072,-500.0,0.00044383,120]
[388581210,1759245098085,-500.0,0.00044584,30]
[388581211,1759245098095,-500.0,0.00044657,120]
[388581212,1759245098104,-979.0,0.00044761,2]
[388581213,1759245098113,-630.0,0.00044761,2]
[388581214,1759245098123,-479.98,0.00044862,32]
[388581215,1759245098133,-999.0,0.00044931,120]
[388581216,1759245098143,-600.60550395,0.00044931,120]
[388581217,1759245098152,-503.0333145,0.00045,7]
[388581218,1759245098161,-14591.88742714,0.00045,2]
[388581219,1759245098171,-160.0,0.00045,7]
[388581220,1759245098180,-160.0,0.00045,7]
[388581221,1759245098189,-3787.67,0.00045,14]
[388581222,1759245098198,-361.16038322,0.00045183,45]
[388581223,1759245098208,-299.56,0.00045217,30]
[388581224,1759245098218,-287.82368704,0.000453,8]
[388581225,1759245098228,-152.03,0.00045344,120]
[388581226,1759245098237,-250.0,0.000454,30]
[388581227,1759245098246,-250.0,0.000454,30]
[388581228,1759245098256,-250.8,0.000454,30]
[388581229,1759245098266,-882.4859,0.000454,2]
[388581230,1759245098276,-882.4859,0.000454,2]
[388581231,1759245098285,-479.98,0.0004541,33]
[388581232,1759245098295,-738137.6727897,0.00045444,30]
[388581233,1759245099559,-482.54868202,0.00019451,2]
[388581234,1759245099569,-500.0,0.00022191,2]
[388581235,1759245099579,-500.0,0.00022465,2]
[388581236,1759245099594,-500.0,0.00022739,2]
[388581237,1759245099604,-500.0,0.00023013,2]
[388581238,1759245099614,-500.0,0.00023287,2]
[388581239,1759245099624,-500.0,0.00023561,2]
[388581240,1759245099633,-500.0,0.00023835,2]
[388581241,1759245099644,-500.0,0.00024109,2]
[388581242,1759245099653,-500.0,0.00024383,2]
[388581243,1759245099662,-400.0,0.00024383,2]
[388581244,1759245099671,-2303.03,0.00024656,2]
[388581245,1759245099682,-500.0,0.00024657,2]
[388581246,1759245099691,-2303.03,0.0002493,2]
[388581247,1759245099702,-500.0,0.00024931,2]
[388581248,1759245099711,-2303.03,0.00025204,2]
[388581249,1759245099721,-606.92,0.00025205,2]
[388581250,1759245099740,-2303.03,0.00025478,2]
[388581251,1759245099759,-2303.12910943,0.00025752,2]
[388581252,1759245099778,-153.0,0.00034563,2]
[388581253,1759245099798,-486.91509141,0.00034999,2]
[388581254,1759245099819,-500.0,0.00034999,2]
[388581255,1759245099837,-430.32126467,0.00035273,2]
[388581256,1759245099856,-151.0,0.00040463,120]
[388581257,1759245099870,-151.0,0.00040463,120]
[388581258,1759245099888,-215361.68236524,0.00045444,30]
[388581259,1759245101231,1285.72476227,0.00033659,120]
[388581260,1759245101576,160.0,0.00033659,60]
[388581261,1759245101838,200.0,0.00033659,120]
[388581262,1759245126111,240.0,0.00024,120]
[388581263,1759245128250,160.0,0.00033659,60]
[388581264,1759245154000,624.153,0.00019178,2]
[388581265,1759245181737,417.15472785,0.00025,30]
[388581266,1759245189063,160.0,0.00033659,60]
[388581268,1759245225428,1000.0,0.00018668,2]
[388581269,1759245246457,154.0,0.00024,120]
[388581270,1759245247908,154.0,0.00026,120]
[388581271,1759245249313,154.0,0.000281,120]
[388581272,1759245249891,317.46862268,0.00033659,60]
[388581274,1759245288366,890.0,0.0002355,120]
[388581275,1759245288812,890.0,0.0002354,120]
[388581276,1759245289255,890.0,0.0002353,120]
[388581277,1759245303286,160.41241493,0.00028767,120]
[388581278,1759245303385,263.52529343,0.00027397,120]
[388581279,1759245303492,298.999999,0.00028767,120]
[388581280,1759245325938,666.0,0.0001845,2]
[388581283,1759245376174,200.0,0.0003356,120]
[388581284,1759245388017,155.0,0.00024,120]
[388581285,1759245389427,155.0,0.000259,120]
[388581286,1759245390811,155.0,0.000278,120]
[388581288,1759245408145,152.0,0.0002191,120]
[388581289,1759245408615,152.0,0.000219,120]
[388581290,1759245409218,152.0,0.0002189,120]
[388581292,1759245423211,739.52436879,0.0003356,120]
[388581293,1759245439363,181.307872,0.00018597,2]
[388581294,1759245439568,181.307872,0.00018597,61]
[388581295,1759245439858,181.307872,0.00018597,120]
[388581297,1759245529503,2296.0,0.0002191,120]
[388581298,1759245529958,2296.0,0.000219,120]
[388581299,1759245530408,2296.0,0.0002189,120]
[388581300,1759245649154,150.5,0.0002191,120]
[388581301,1759245649597,150.5,0.000219,120]
[388581302,1759245650412,150.5,0.0002189,120]
[388581304,1759245672776,200.0,0.00033543,120]
[388581305,1759245682703,161.0,0.000287,120]
[388581306,1759245683619,161.0,0.000287,120]
[388581307,1759245686929,-204.76438321,0.0001935,2]
[388581308,1759245686955,-300.0,0.00019447,2]
[388581309,1759245686980,-769.0,0.00019448,2]
[388581310,1759245687005,-720.0,0.00019448,2]
[388581311,1759245687032,-500.0,0.00019448,2]
[388581312,1759245687058,-500.0,0.00019448,2]
[388581313,1759245687084,-190.81100564,0.00019448,2]
[388581314,1759245687114,-500.0,0.00019449,2]
[388581315,1759245687147,-500.0,0.00019449,2]
[388581316,1759245687174,-500.0,0.00019449,2]
[388581317,1759245687200,-538.36,0.00019449,2]
[388581318,1759245687225,-480.0,0.00019449,2]
[388581319,1759245687250,-500.0,0.00019449,2]
[388581320,1759245687277,-500.0,0.00019449,2]
[388581321,1759245687301,-1113.05,0.00019449,2]
[388581322,1759245687324,-500.0,0.00019449,2]
[388581323,1759245687350,-1407.61,0.00019449,2]
[388581324,1759245687375,-1249.04,0.00019449,2]
[388581325,1759245687399,-34862.98981708,0.00019449,2]
[388581326,1759245687425,-500.0,0.00019449,2]
[388581327,1759245687450,-500.0,0.00019449,2]
[388581328,1759245687477,-242.49336239,0.00019449,2]
[388581329,1759245687502,-480.0,0.0001945,2]
[388581330,1759245687528,-480.0,0.0001945,2]
[388581331,1759245687553,-500.0,0.0001945,2]
[388581332,1759245687576,-460.0,0.0001945,2]
[388581333,1759245687603,-548.34,0.0001945,2]
[388581334,1759245687627,-500.0,0.0001945,2]
[388581335,1759245687652,-542.69314281,0.0001945,2]
[388581336,1759245687677,-500.0,0.0001945,2]
[388581337,1759245687703,-485.47855519,0.0001945,2]
[388581338,1759245687728,-500.0,0.0001945,2]
[388581339,1759245687753,-649.24,0.0001945,2]
[388581340,1759245687779,-500.0,0.0001945,2]
[388581341,1759245687804,-480.0,0.0001945,2]
[388581342,1759245687828,-483.14984041,0.0001945,2]
[388581343,1759245687855,-500.0,0.0001945,2]
[388581344,1759245687880,-594.84,0.0001945,2]
[388581345,1759245687907,-500.0,0.0001945,2]
[388581346,1759245687930,-626.39,0.0001945,2]
[388581347,1759245687954,-573.63502016,0.0001945,2]
[388581348,1759245687979,-480.0,0.0001945,2]
[388581349,1759245688002,-480.0,0.0001945,2]
[388581350,1759245688026,-500.0,0.0001945,2]
[388581351,1759245688051,-464.15222914,0.0001945,2]
[388581352,1759245688075,-500.0,0.0001945,2]
[388581353,1759245688104,-500.0,0.0001945,2]
[388581354,1759245688128,-500.0,0.0001945,2]
[388581355,1759245688152,-500.0,0.0001945,2]
[388581356,1759245688177,-500.0,0.0001945,2]
[388581357,1759245688202,-500.0,0.0001945,2]
[388581358,1759245688234,-500.0,0.0001945,2]
[388581359,1759245688258,-386.0409456,0.0001945,2]
[388581360,1759245688283,-500.0,0.0001945,2]
[388581361,1759245688307,-500.0,0.0001945,2]
[388581362,1759245688330,-500.0,0.0001945,2]
[388581363,1759245688358,-500.0,0.0001945,2]
[388581364,1759245688382,-500.0,0.0001945,2]
[388581365,1759245688405,-501.87,0.0001945,2]
[388581366,1759245688428,-500.0,0.0001945,2]
[388581367,1759245688454,-500.0,0.0001945,2]
[388581368,1759245688479,-500.0,0.0001945,2]
[388581369,1759245688505,-500.0,0.0001945,2]
[388581370,1759245688529,-500.0,0.0001945,2]
[388581371,1759245688551,-500.0,0.0001945,2]
[388581372,1759245688575,-613.27658343,0.0001945,2]
[388581373,1759245688600,-518.18,0.0001945,2]
[388581374,1759245688625,-500.0,0.0001945,2]
[388581375,1759245688651,-500.0,0.0001945,2]
[388581376,1759245688678,-601.03,0.0001945,2]
[388581377,1759245688702,-833.25,0.0001945,2]
[388581378,1759245688733,-500.0,0.0001945,2]
[388581379,1759245688765,-500.0,0.0001945,2]
[388581380,1759245688797,-481.59159126,0.00019451,2]
[388581381,1759245688827,-482.23560272,0.00019451,2]
[388581382,1759245688856,-500.0,0.00019451,2]
[388581383,1759245688883,-482.70037376,0.00019451,2]
[388581384,1759245688910,-483.31302648,0.00019451,2]
[388581385,1759245688937,-480.0,0.00019451,2]
[388581386,1759245688965,-500.0,0.00019451,2]
[388581387,1759245688992,-480.0,0.00019451,2]
[388581388,1759245689020,-480.0,0.00019451,2]
[388581389,1759245689048,-481.1951356,0.00019451,2]
[388581390,1759245689076,-480.0,0.00019451,2]
[388581391,1759245689108,-500.0,0.00019451,2]
[388581392,1759245689136,-500.0,0.00019451,2]
[388581393,1759245689165,-500.0,0.00019451,2]
[388581394,1759245689199,-630.39976775,0.00019451,2]
[388581395,1759245689227,-500.0,0.00019451,2]
[388581396,1759245689254,-480.0,0.00019451,2]
[388581397,1759245689281,-500.0,0.00019451,2]
[388581398,1759245689308,-500.0,0.00019451,2]
[388581399,1759245689337,-500.0,0.00019451,2]
[388581400,1759245689366,-480.0,0.00019451,2]
[388581401,1759245689394,-500.0,0.00019451,2]
[388581402,1759245689421,-500.0,0.00019451,2]
[388581403,1759245689447,-1869.88,0.00019451,2]
[388581404,1759245689472,-480.0,0.00019451,2]
[388581405,1759245689497,-851.4,0.00019451,2]
[388581406,1759245689524,-574.33,0.00019451,2]
[388581407,1759245689549,-585.51,0.00019451,2]
[388581408,1759245689577,-626.42,0.00019451,2]
[388581409,1759245689605,-500.0,0.00019451,2]
[388581410,1759245689632,-2000.0,0.00019717,2]
[388581411,1759245689661,-1816.461,0.00019717,2]
[388581412,1759245689689,-500.0,0.00019722,2]
[388581413,1759245689722,-500.0,0.00019723,2]
[388581414,1759245689752,-500.0,0.00019723,2]
[388581415,1759245689780,-500.0,0.00019723,2]
[388581416,1759245689809,-538.36,0.00019723,2]
[388581417,1759245689836,-500.0,0.00019723,2]
[388581418,1759245689862,-500.0,0.00019723,2]
[388581419,1759245689888,-1113.05,0.00019723,2]
[388581420,1759245689916,-500.0,0.00019723,2]
[388581421,1759245689945,-1407.61,0.00019723,2]
[388581422,1759245689975,-1249.04,0.00019723,2]
[388581423,1759245690004,-460.0,0.00019724,2]
[388581424,1759245690031,-548.34,0.00019724,2]
[388581425,1759245690056,-500.0,0.00019724,2]
[388581426,1759245690081,-500.0,0.00019724,2]
[388581427,1759245690113,-500.0,0.00019724,2]
[388581428,1759245690139,-649.24,0.00019724,2]
[388581429,1759245690167,-500.0,0.00019724,2]
[388581430,1759245690196,-460.0,0.00019724,2]
[388581431,1759245690222,-594.84,0.00019724,2]
[388581432,1759245690247,-460.0,0.00019724,2]
[388581433,1759245690273,-626.39,0.00019724,2]
[388581434,1759245690298,-500.0,0.00019724,2]
[388581435,1759245690323,-500.0,0.00019724,2]
[388581436,1759245690351,-500.0,0.00019724,2]
[388581437,1759245690376,-500.0,0.00019724,2]
[388581438,1759245690401,-500.0,0.00019724,2]
[388581439,1759245690427,-500.0,0.00019724,2]
[388581440,1759245690453,-500.0,0.00019724,2]
[388581441,1759245690477,-500.0,0.00019724,2]
[388581442,1759245690502,-500.0,0.00019724,2]
[388581443,1759245690528,-500.0,0.00019724,2]
[388581444,1759245690555,-500.0,0.00019724,2]
[388581445,1759245690580,-500.0,0.00019724,2]
[388581446,1759245690608,-500.0,0.00019724,2]
[388581447,1759245690634,-501.87,0.00019724,2]
[388581448,1759245690661,-500.0,0.00019724,2]
[388581449,1759245690687,-500.0,0.00019724,2]
[388581450,1759245690713,-500.0,0.00019724,2]
[388581451,1759245690738,-500.0,0.00019724,2]
[388581452,1759245690763,-500.0,0.00019724,2]
[388581453,1759245690790,-500.0,0.00019724,2]
[388581454,1759245690986,-500.0,0.00019724,2]
[388581455,1759245691010,-518.18,0.00019724,2]
[388581456,1759245691037,-500.0,0.00019724,2]
[388581457,1759245691060,-462.49946624,0.00019724,2]
[388581458,1759245691087,-601.03,0.00019724,2]
[388581459,1759245691119,-833.25,0.00019724,2]
[388581460,1759245691144,-500.0,0.00019724,2]
[388581461,1759245691170,-500.0,0.00019724,2]
[388581462,1759245691196,-500.0,0.00019725,2]
[388581463,1759245691221,-500.0,0.00019725,2]
[388581464,1759245691246,-500.0,0.00019725,2]
[388581465,1759245691275,-500.0,0.00019725,2]
[388581466,1759245691301,-460.0,0.00019725,2]
[388581467,1759245691326,-500.0,0.00019725,2]
[388581468,1759245691351,-500.0,0.00019725,2]
[388581469,1759245691377,-460.0,0.00019725,2]
[388581470,1759245691403,-500.0,0.00019725,2]
[388581471,1759245691429,-500.0,0.00019725,2]
[388581472,1759245691454,-1869.88,0.00019725,2]
[388581473,1759245691480,-851.4,0.00019725,2]
[388581474,1759245691511,-574.33,0.00019725,2]
[388581475,1759245691536,-585.51,0.00019725,2]
[388581476,1759245691562,-626.42,0.00019725,2]
[388581477,1759245691588,-500.0,0.00019725,2]
[388581478,1759245691612,-343.11249694,0.00019773,2]
[388581479,1759245691636,-500.0,0.00019773,2]
[388581480,1759245691660,-200.0,0.00019773,2]
[388581481,1759245691684,-500.0,0.00019996,2]
[388581482,1759245691709,-500.0,0.00019997,2]
[388581483,1759245691734,-500.0,0.00019997,2]
[388581484,1759245691759,-500.0,0.00019997,2]
[388581485,1759245691783,-538.36,0.00019997,2]
[388581486,1759245691805,-500.0,0.00019997,2]
[388581487,1759245691828,-500.0,0.00019997,2]
[388581488,1759245691854,-1113.05,0.00019997,2]
[388581489,1759245691877,-500.0,0.00019997,2]
[388581490,1759245691902,-1407.61,0.00019997,2]
[388581491,1759245691925,-1249.04,0.00019997,2]
[388581492,1759245691950,-548.34,0.00019998,2]
[388581493,1759245691975,-500.0,0.00019998,2]
[388581494,1759245692000,-443.80425347,0.00019998,2]
[388581495,1759245692024,-500.0,0.00019998,2]
[388581496,1759245692047,-649.24,0.00019998,2]
[388581497,1759245692071,-500.0,0.00019998,2]
[388581498,1759245692100,-594.84,0.00019998,2]
[388581499,1759245692128,-626.39,0.00019998,2]
[388581500,1759245692152,-500.0,0.00019998,2]
[388581501,1759245692178,-500.0,0.00019998,2]
[388581502,1759245692203,-500.0,0.00019998,2]
[388581503,1759245692229,-500.0,0.00019998,2]
[388581504,1759245692255,-500.0,0.00019998,2]
[388581505,1759245692281,-500.0,0.00019998,2]
[388581506,1759245692305,-440.0,0.00019998,2]
[388581507,1759245692329,-500.0,0.00019998,2]
[388581508,1759245692357,-500.0,0.00019998,2]
[388581509,1759245692384,-500.0,0.00019998,2]
[388581510,1759245692409,-500.0,0.00019998,2]
[388581511,1759245692434,-500.0,0.00019998,2]
[388581512,1759245692460,-500.0,0.00019998,2]
[388581513,1759245692484,-501.87,0.00019998,2]
[388581514,1759245692511,-500.0,0.00019998,2]
[388581515,1759245692536,-500.0,0.00019998,2]
[388581516,1759245692562,-225.80791717,0.00019998,2]
[388581517,1759245692586,-500.0,0.00019998,2]
[388581518,1759245692612,-500.0,0.00019998,2]
[388581519,1759245692637,-500.0,0.00019998,2]
[388581520,1759245692662,-500.0,0.00019998,2]
[388581521,1759245692688,-518.18,0.00019998,2]
[388581522,1759245692712,-500.0,0.00019998,2]
[388581523,1759245692737,-833.25,0.00019998,2]
[388581524,1759245692761,-500.0,0.00019998,2]
[388581525,1759245692787,-500.0,0.00019998,2]
[388581526,1759245692811,-447.91645765,0.00019999,2]
[388581527,1759245692837,-500.0,0.00019999,2]
[388581528,1759245692863,-500.0,0.00019999,2]
[388581529,1759245692887,-500.0,0.00019999,2]
[388581530,1759245692911,-500.0,0.00019999,2]
[388581531,1759245692935,-500.0,0.00019999,2]
[388581532,1759245692959,-500.0,0.00019999,2]
[388581533,1759245692984,-500.0,0.00019999,2]
[388581534,1759245693009,-1869.88,0.00019999,2]
[388581535,1759245693034,-851.4,0.00019999,2]
[388581536,1759245693059,-574.33,0.00019999,2]
[388581537,1759245693085,-585.51,0.00019999,2]
[388581538,1759245693116,-626.42,0.00019999,2]
[388581539,1759245693144,-500.0,0.00019999,2]
[388581540,1759245693170,-507.573,0.0002,2]
[388581541,1759245693202,-500.0,0.0002027,2]
[388581542,1759245693229,-500.0,0.00020271,2]
[388581543,1759245693259,-500.0,0.00020271,2]
[388581544,1759245693285,-351.19090599,0.00020271,2]
[388581545,1759245693311,-538.36,0.00020271,2]
[388581546,1759245693335,-500.0,0.00020271,2]
[388581547,1759245693363,-500.0,0.00020271,2]
[388581548,1759245693388,-1113.05,0.00020271,2]
[388581549,1759245693413,-475.005094,0.00020271,2]
[388581550,1759245693438,-1407.61,0.00020271,2]
[388581551,1759245693464,-1249.04,0.00020271,2]
[388581552,1759245693490,-548.34,0.00020272,2]
[388581553,1759245693516,-500.0,0.00020272,2]
[388581554,1759245693544,-500.0,0.00020272,2]
[388581555,1759245693569,-649.24,0.00020272,2]
[388581556,1759245693595,-500.0,0.00020272,2]
[388581557,1759245693620,-594.84,0.00020272,2]
[388581558,1759245693645,-626.39,0.00020272,2]
[388581559,1759245693670,-500.0,0.00020272,2]
[388581560,1759245693694,-500.0,0.00020272,2]
[388581561,1759245693821,-500.0,0.00020272,2]
[388581562,1759245693848,-500.0,0.00020272,2]
[388581563,1759245693874,-500.0,0.00020272,2]
[388581564,1759245693899,-500.0,0.00020272,2]
[388581565,1759245693924,-500.0,0.00020272,2]
[388581566,1759245693948,-500.0,0.00020272,2]
[388581567,1759245693974,-500.0,0.00020272,2]
[388581568,1759245693999,-500.0,0.00020272,2]
[388581569,1759245694027,-500.0,0.00020272,2]
[388581570,1759245694053,-500.0,0.00020272,2]
[388581571,1759245694078,-501.87,0.00020272,2]
[388581572,1759245694108,-500.0,0.00020272,2]
[388581573,1759245694134,-500.0,0.00020272,2]
[388581574,1759245694160,-500.0,0.00020272,2]
[388581575,1759245694186,-500.0,0.00020272,2]
[388581576,1759245694212,-500.0,0.00020272,2]
[388581577,1759245694237,-500.0,0.00020272,2]
[388581578,1759245694262,-518.18,0.00020272,2]
[388581579,1759245694287,-500.0,0.00020272,2]
[388581580,1759245694312,-833.25,0.00020272,2]
[388581581,1759245694339,-500.0,0.00020272,2]
[388581582,1759245694365,-500.0,0.00020272,2]
[388581583,1759245698917,550.0,0.000273,120]
[388581584,1759245708550,161.0,0.0002,2]
[388581585,1759245709342,161.0,0.0002,2]
[388581586,1759245710087,161.0,0.0002,2]
[388581587,1759245713866,500.0,0.00019448,2]
[388581588,1759245714121,500.0,0.00019722,2]
[388581589,1759245714364,500.0,0.00019996,2]
[388581590,1759245714670,347.68704339,0.0002027,2]
[388581591,1759245720630,161.0,0.0002,2]
[388581592,1759245721161,161.0,0.0002,2]
[388581593,1759245738038,161.0,0.0002,3]
[388581594,1759245738990,161.0,0.0002,3]
[388581595,1759245755928,161.0,0.00025,30]
[388581596,1759245756580,161.0,0.00025,30]
[388581598,1759245773150,500.0,0.0001945,2]
[388581599,1759245773426,500.0,0.00019724,2]
[388581600,1759245773696,500.0,0.00019998,2]
[388581601,1759245773951,500.0,0.00020272,2]
[388581603,1759245781757,500.0,0.00019448,2]
[388581604,1759245782011,462.99651558,0.00019722,2]
[388581606,1759245789494,161.0,0.0002,4]
[388581607,1759245793856,500.0,0.0001945,2]
[388581608,1759245794109,500.0,0.00019724,2]
[388581609,1759245794576,500.0,0.00019998,2]
[388581610,1759245794793,161.0,0.0002,4]
[388581611,1759245794825,500.0,0.00020272,2]
[388581612,1759245794933,101.66546694,0.00019448,2]
[388581617,1759245889115,1607.0,0.00023002,120]
[388581618,1759245889212,150.5,0.00023002,120]
[388581619,1759245889551,1607.0,0.00022992,120]
[388581620,1759245889649,150.5,0.00022992,120]
[388581621,1759245890012,1607.0,0.00022982,120]
[388581622,1759245890463,150.5,0.00022982,120]
[388581623,1759245938615,641.0,0.00021264,120]
[388581624,1759245939858,641.0,0.00022327,120]
[388581625,1759245941123,641.0,0.00023444,120]
[388581626,1759245942368,641.0,0.00024616,120]
[388581627,1759245943641,641.0,0.00025847,120]
[388581628,1759245944970,641.0,0.00027139,120]
[388581629,1759245946216,641.0,0.00028496,120]
[388581630,1759245972476,200.0,0.00033544,120]
[388581631,1759245978151,499.00978346,0.00033544,60]
[388581650,1759246009747,623.0,0.0002223,120]
[388581651,1759246010195,623.0,0.0002222,120]
[388581652,1759246010648,623.0,0.0002221,120]
[388581655,1759246061117,152.58434812,0.00033544,120]
[388581656,1759246062214,429.98900783,0.00033544,60]
[388581657,1759246062650,281.74058769,0.00033544,120]
[388581658,1759246067108,228.42380154,0.000259,120]
[388581659,1759246073450,154.14780313,0.00033544,60]
[388581660,1759246076527,200.57063357,0.00025,120]
[388581663,1759246084116,867.67030408,0.00033544,120]
[388581665,1759246089903,157.56413228,0.00033544,120]
[388581666,1759246090326,986.92290517,0.00033544,120]
[388581667,1759246098530,937.15595925,0.00033544,120]
[388581672,1759246106451,864.40202439,0.00033544,120]
[388581673,1759246107342,879.65558904,0.00033544,120]
[388581674,1759246107449,706.74886228,0.00033544,120]
[388581676,1759246108483,977.06136082,0.00033544,60]
[388581677,1759246108583,240.82074905,0.00033544,120]
[388581678,1759246109073,313.41405349,0.00033544,90]
[388581679,1759246109328,410.60222362,0.00033544,60]
[388581680,1759246109911,247.76314999,0.00033544,120]
[388581681,1759246110290,536.20129386,0.0002,120]
[388581683,1759246110924,187.64699346,0.00033544,60]
[388581684,1759246111026,366.47701709,0.00033544,120]
[388581685,1759246111623,346.34130429,0.00033544,120]
[388581686,1759246112143,737.89443458,0.00033544,60]
[388581687,1759246112337,367.71512513,0.00025,120]
[388581688,1759246112443,583.8457266,0.00024108,120]
[388581689,1759246112685,355.63456227,0.00025,120]
[388581690,1759246113622,567.24348536,0.00033544,120]
[388581691,1759246114075,192.33150899,0.00028,120]
[388581692,1759246114300,330.72820396,0.00033544,120]
[388581693,1759246114403,736.61003519,0.00033544,120]
[388581694,1759246115201,672.71020501,0.00033544,120]
[388581695,1759246115307,903.02103964,0.00033544,120]
[388581696,1759246115421,999.8384135,0.00025,120]
[388581697,1759246115531,544.92536436,0.00033544,120]
[388581698,1759246116131,206.78075571,0.00027,120]
[388581699,1759246116457,436.39618532,0.00033544,120]
[388581700,1759246116572,462.5165399,0.00033544,120]